[Event "ChessKid Cup Div-II 2023"]
[Site "Online"]
[Date "2023.05.22"]
[Round "1.4"]
[White "Rasulov, Vugar"]
[Black "Eljanov, Pavel"]
[Result "1/2-1/2"]
[ECO "D35"]
[WhiteElo "2523"]
[BlackElo "2705"]
[Annotator "TA"]
[PlyCount "132"]
[EventDate "2023.05.21"]
[EventType "k.o."]
[EventCountry "NET"]
[SourceTitle "playchess.com"]
[Source "ChessBase"]
[SourceQuality "1"]
[TimeControl "900+3"]

{[%evp 12,132,22,16,31,6,22,22,25,25,33,32,48,70,52,42,47,54,62,62,105,65,73,66,122,98,95,62,65,28,25,16,120,69,70,70,73,68,77,47,47,47,47,45,46,35,35,35,35,29,35,17,17,17,17,17,17,17,17,0,0,0,17,17,17,17,17,17,17,17,17,17,17,17,17,0,0,0,0,0,0,0,0,0,0,0,0,0,0,0,0,0,0,0,0,0,0,0,0,0,0,0,0,0,0,0,0,0,0,0,0,0,0,0,0,0,0,0,0,0,0,0,0]} 1. d4 {[%emt 0:00:03]} Nf6 {[%emt 0:00:06]} 2. c4 {[%emt 0:00:02]} e6 {[%emt 0:00:01]} 3. Nc3 {[%emt 0:00:01]} d5 {[%emt 0:00:02]} 4. cxd5 {[%emt 0:00:01]} exd5 {[%emt 0:00:00]} 5. Bg5 {[%emt 0:00:01]} Be7 {[%emt 0:00:04]} 6. e3 {[%emt 0:00:02]} h6 {[%emt 0:00:13]} 7. Bh4 {[%emt 0:00:01]} Bg4 {[%emt 0:00:22] D35: Queen's Gambit Declined: Exchange Variation.} 8. Nf3 {[%emt 0:00:10]} O-O {[%emt 0:00:10]} 9. Bd3 {[%emt 0:00:10]} Nbd7 {[%emt 0:00:20]} 10. h3 {[%emt 0:00:09]} Be6 {[%emt 0:00:26]} 11. O-O {[%emt 0:00:39]} c5 {[%emt 0:00:34]} 12. Rc1 {[%emt 0:00:14] [#]} Rc8 $146 {[%emt 0:00:36]} ({Predecessor:} 12... cxd4 13. Nxd4 Rc8 14. Bb1 Qb6 15. Qe2 Ne5 16. Rfd1 Rfd8 17. f4 Nc6 18. f5 Bd7 19. Bxf6 Bxf6 20. Nxd5 Nxd4 21. exd4 {1-0 Rodriguez Gutierrez,B (2150)-Martin Campos,B (1876) Capablanca Memorial op 53rd 2018 (1)}) 13. dxc5 {[%emt 0:00:05]} Nxc5 {[%emt 0:00:03][%cal Od5d4]} 14. Nd4 {[%emt 0:00:08]} Qb6 {[%emt 0:01:36]} 15. b3 {[%emt 0:00:22]} Rfd8 {[%emt 0:00:19]} 16. Bb1 {[%emt 0:00:34]} g5 {[%emt 0:00:56]} 17. Bg3 {[%emt 0:00:04]} Nfe4 {[%emt 0:00:09]} ({Black should try} 17... Nce4 $14 18. Nxe4 Nxe4) 18. Qh5 {[%emt 0:01:51]} Bf8 {[%emt 0:00:18]} 19. Nxe4 {[%emt 0:01:16]} Nxe4 {[%emt 0:00:08]} 20. Bxe4 {[%emt 0:00:32]} (20. Be5 {with more complications.} Bd7 21. h4 Qg6 22. Qxg6+ fxg6 23. hxg5 hxg5 24. Rfd1) 20... dxe4 {[%emt 0:00:12]} 21. h4 {[%emt 0:00:03]} g4 {[%emt 0:00:54]} (21... Rd5 $1 $11 {keeps the balance.} 22. hxg5 hxg5) 22. Qe5 {[%emt 0:01:29] White is more active.} (22. Rxc8 $16 Rxc8 23. Qe5) 22... Rxc1 $14 {[%emt 0:01:24]} 23. Rxc1 {[%emt 0:00:03]} Bg7 {[%emt 0:00:15]} 24. Qxe4 {[%emt 0:00:02]} Bxd4 {[%emt 0:00:07]} 25. Bc7 {[%emt 0:01:17][%mdl 64] [#] Deflection} (25. exd4 {simplifies} Rxd4 26. Qe3 Qb4 27. Qe5) 25... Rc8 {[%emt 0:00:02]} 26. Qxd4 {[%emt 0:00:04]} (26. exd4 $2 {loses.} Rxc7 27. Rxc7 Qxc7 $19) 26... Qxd4 {[%emt 0:00:01]} (26... Rxc7 $2 27. Qd8+ Kh7 28. Rxc7 $18) 27. exd4 {[%emt 0:00:00][%mdl 4096] Endgame KRB-KRB} h5 {[%emt 0:00:01]} 28. Kh2 {[%emt 0:00:37]} b6 {[%emt 0:00:27]} 29. Kg3 {[%emt 0:00:09]} f6 {[%emt 0:00:09]} 30. Kf4 {[%emt 0:00:16]} Bd5 {[%emt 0:00:05]} 31. f3 {[%emt 0:00:30]} gxf3 {[%emt 0:00:05] The position is equal.} 32. gxf3 {[%emt 0:00:00]} Kf7 {[%emt 0:00:01]} 33. Kg3 {[%emt 0:00:48]} Ke6 {[%emt 0:00:20]} 34. Kf2 {[%emt 0:00:24]} Kf5 {[%emt 0:00:16]} 35. Rc3 {[%emt 0:00:22]} (35. Bf4 $5 {[%cal Rc1c8]} Rxc1 36. Bxc1 $11) 35... Ke6 {[%emt 0:00:17] Hoping for ...Kd7.} 36. Rc1 {[%emt 0:00:35]} Kd7 {[%emt 0:00:12]} 37. Bf4 {[%emt 0:00:04]} Rxc1 {[%emt 0:00:01]} 38. Bxc1 $11 {[%emt 0:00:00] KB-KB} a5 {[%emt 0:00:08]} 39. Ke3 {[%emt 0:00:06]} a4 {[%emt 0:00:15]} 40. bxa4 {[%emt 0:00:05]} Bxa2 {[%emt 0:00:01]} 41. Kf4 {[%emt 0:00:26]} Ke6 {[%emt 0:00:04]} 42. Bd2 {[%emt 0:00:12]} Bb3 {[%emt 0:00:04]} 43. Bb4 {[%emt 0:00:19]} Bxa4 {[%emt 0:00:18]} 44. d5+ {[%emt 0:00:02][%mdl 64] [#] Deflection} Kxd5 {[%emt 0:00:38]} 45. Kf5 {[%emt 0:00:02]} Bd1 {[%emt 0:00:03]} 46. f4 {[%emt 0:00:03]} Bg4+ {[%emt 0:00:02]} 47. Kxf6 {[%emt 0:00:02]} Ke4 {[%emt 0:00:01]} 48. Kg5 {[%emt 0:00:04]} b5 {[%emt 0:00:01]} 49. Bd6 {[%emt 0:00:04]} Be6 {[%emt 0:00:20]} 50. Ba3 {[%emt 0:00:05]} Bf7 {[%emt 0:00:32]} 51. f5 {[%emt 0:00:02]} Be8 {[%emt 0:00:11]} 52. Bb4 {[%emt 0:00:06]} Bd7 {[%emt 0:00:28]} 53. f6 {[%emt 0:00:02][%cal Of6f7] f7! would kill now.} Be8 {[%emt 0:00:01]} 54. Bc3 {[%emt 0:00:04]} Kd5 {[%emt 0:00:03]} 55. Kh6 {[%emt 0:00:13]} Ke6 {[%emt 0:00:02]} 56. Kg7 {[%emt 0:00:01]} Bf7 {[%emt 0:00:00]} 57. Kh7 {[%emt 0:00:10]} Be8 {[%emt 0:00:02]} 58. Kg8 {[%emt 0:00:01]} Bf7+ {[%emt 0:00:01]} 59. Kg7 {[%emt 0:00:12]} Be8 {[%emt 0:00:01]} 60. Bb2 {[%emt 0:00:08]} b4 {[%emt 0:00:04]} 61. Ba1 {[%emt 0:00:02]} b3 {[%emt 0:00:02]} 62. Bb2 {[%emt 0:00:00]} Bf7 {[%emt 0:00:01]} 63. Kf8 {[%emt 0:00:03]} Bg6 {[%emt 0:00:01]} 64. Kg7 {[%emt 0:00:00]} Bf7 {[%emt 0:00:01]} 65. Bc3 {[%emt 0:00:02]} (65. Kf8 $5) 65... Be8 {[%emt 0:00:01]} 66. Bb2 {[%emt 0:00:00]} Bf7 {[%emt 0:00:00] Weighted Error Value: White=0.08 (flawless) /Black=0.08 (flawless)} 1/2-1/2

[Event "ChessKid Cup Div-II 2023"]
[Site "Online"]
[Date "2023.05.22"]
[Round "1.4"]
[White "Gharibyan, Mamikon"]
[Black "Sadhwani, Raunak"]
[Result "0-1"]
[ECO "D02"]
[WhiteElo "2500"]
[BlackElo "2627"]
[Annotator "TA"]
[PlyCount "52"]
[EventDate "2023.05.21"]
[EventType "k.o."]
[EventCountry "NET"]
[SourceTitle "playchess.com"]
[Source "ChessBase"]
[SourceQuality "1"]
[TimeControl "900+3"]

{[%evp 9,52,10,6,2,-2,-12,0,0,0,-5,0,0,0,0,7,7,16,36,33,5,12,6,5,-27,-14,-16,-23,-18,-46,-132,-119,-129,-118,-340,-228,-312,-302,-318,-318,-433,-444,-441,-424,-429,-421]} 1. d4 {[%emt 0:00:08]} Nf6 {[%emt 0:00:05]} 2. Nf3 {[%emt 0:00:05]} d5 {[%emt 0:00:02]} 3. c3 {[%emt 0:00:02]} e6 {[%emt 0:00:01]} 4. Bf4 {[%emt 0:00:02]} Bd6 {[%emt 0:00:00]} 5. e3 {[%emt 0:00:01]} O-O {[%emt 0:00:03]} 6. Nbd2 {[%emt 0:00:01] D02: 1 d4 d5 2 Nf3 sidelines, including 2...Nf6 3 g3 and 2...Nf6 3 Bf4.} c5 {[%emt 0:00:01]} 7. Bg3 {[%emt 0:00:01]} Qc7 {[%emt 0:00:01]} 8. dxc5 {[%emt 0:00:02] The position is equal.} Qxc5 {[%emt 0:00:00]} 9. Bd3 {[%emt 0:00:02]} Nbd7 {[%emt 0:00:05]} 10. Qe2 {[%emt 0:00:08]} Qc7 $5 {[%emt 0:00:05][%mdl 4] A promising side line.} 11. e4 {[%emt 0:00:07] [#] Strongly threatening e5.} dxe4 {[%emt 0:00:00]} 12. Nxe4 {[%emt 0:00:01]} Nxe4 {[%emt 0:00:00]} 13. Qxe4 {[%emt 0:00:01][%csl Gd3][%cal Re4h7]} Nf6 {[%emt 0:00:01]} 14. Qe2 {[%emt 0:00:08] [#]} Rd8 $5 $146 {[%emt 0:00:00][%mdl 8] An interesting novelty.} ({Predecessor:} 14... b6 15. Rd1 Rd8 16. O-O Bb7 17. Ng5 h6 18. Ne4 Nxe4 19. Bxe4 Bxg3 20. hxg3 Rac8 {½-½ Schulze,M (2123)-Buckels,V (2304) GER-ch Net blitz sf 2021 (2)}) 15. O-O-O {[%emt 0:00:04]} b6 {[%emt 0:00:01]} 16. Ne5 {[%emt 0:00:22]} Bb7 {[%emt 0:00:02]} 17. Kb1 {[%emt 0:01:25]} Bxg2 {[%emt 0:01:24]} 18. Rhg1 {[%emt 0:00:05]} Bh3 {[%emt 0:00:00]} 19. Bf4 {[%emt 0:01:25]} (19. Rge1 $15) 19... Bf5 $17 {[%emt 0:00:33]} 20. Bxf5 {[%emt 0:07:30]} exf5 {[%emt 0:00:01]} 21. Rge1 $2 {[%emt 0:00:51] This move loses the game for White.} (21. Rxd6 $17 Rxd6 22. Nc4 {[%mdl 64] Pin} Rd1+ {[%mdl 64] Discovered Attack} 23. Rxd1 Qxf4 24. Qd2 Qe4+ 25. Kc1) 21... Re8 {[%emt 0:00:08][%cal Of6g4]} 22. Qf3 {[%emt 0:00:16]} Ne4 {[%emt 0:00:03] Dodges Bg3} ({Weaker is} 22... Bxe5 23. Bxe5 Qe7 24. Qxf5 $11) 23. Nd3 {[%emt 0:00:15]} Bxf4 {[%emt 0:00:01][%mdl 64] Remove Defender} 24. Nxf4 {[%emt 0:00:01] [#]} Nd2+ $1 {[%emt 0:00:05][%mdl 576] Deflection. Black is clearly winning.} 25. Rxd2 {[%emt 0:00:11] Black must now prevent Rde2.} Rxe1+ {[%emt 0:00:02]} 26. Kc2 {[%emt 0:00:00]} Rae8 {[%emt 0:00:05] Weighted Error Value: White=0.37/Black=0.09 (flawless)} 0-1

[Event "ChessKid Cup Div-II 2023"]
[Site "Online"]
[Date "2023.05.22"]
[Round "1.5"]
[White "Fedoseev, Vladimir"]
[Black "Mamedyarov, Shakhriyar"]
[Result "1-0"]
[ECO "A17"]
[WhiteElo "2680"]
[BlackElo "2738"]
[Annotator "TA"]
[PlyCount "79"]
[EventDate "2023.05.21"]
[EventType "k.o."]
[EventCountry "NET"]
[SourceTitle "playchess.com"]
[Source "ChessBase"]
[SourceQuality "1"]
[TimeControl "900+3"]

{[%evp 19,79,0,25,17,56,42,38,43,62,54,67,48,49,47,50,46,50,47,51,51,51,49,56,51,56,52,43,45,46,28,31,28,31,28,28,28,28,18,21,-30,-30,-30,-30,-36,2,2,0,0,6,6,6,3,8,8,8,8,22,22,23,26,29978,29979]} 1. Nf3 {[%emt 0:00:07]} Nf6 {[%emt 0:03:15]} 2. c4 {[%emt 0:00:04]} e6 {[%emt 0:00:04]} 3. g3 {[%emt 0:00:06]} d5 {[%emt 0:00:04]} 4. Bg2 {[%emt 0:00:05]} Be7 {[%emt 0:00:07]} 5. O-O {[%emt 0:00:05]} O-O {[%emt 0:00:06]} 6. d3 {[%emt 0:00:10]} b6 {[%emt 0:00:18]} 7. cxd5 {[%emt 0:00:05]} exd5 {[%emt 0:00:07]} 8. d4 {[%emt 0:00:05]} c5 {[%emt 0:00:06]} 9. Nc3 {[%emt 0:00:05]} Nc6 {[%emt 0:00:04]} 10. Bf4 {[%emt 0:00:14]} Bb7 {[%emt 0:00:20]} 11. Rc1 {[%emt 0:00:08] A17: English Opening: 1...Nf6 with ...Bb4.} cxd4 {[%emt 0:00:31]} 12. Nxd4 {[%emt 0:00:33]} Nxd4 {[%emt 0:00:06]} 13. Qxd4 {[%emt 0:00:03] White is slightly better.} Bc5 {[%emt 0:00:03]} 14. Qd3 {[%emt 0:00:04] [#] White is much more active. The black rooks are badly placed.} Qe7 $146 {[%emt 0:00:11]} ({Predecessor:} 14... Qd7 15. Rfd1 Rfd8 16. Bg5 Be7 17. Rd2 Ne4 18. Nxe4 dxe4 19. Qxd7 Rxd7 20. Rxd7 Bxg5 21. Rcc7 Bc8 22. Bxe4 Bxd7 23. Bxa8 Be6 24. Bd5 Kf8 25. Bxe6 fxe6 26. Rxa7 {1-0 Pohl,M-Rausch,R Berlin-ch U14 1999 (5)}) 15. Bg5 {[%emt 0:00:16]} ({Much weaker is} 15. Bxd5 $6 Nxd5 16. Nxd5 Bxd5 17. Qxd5 Qxe2 $11) (15. Nxd5 $6 Bxd5 16. Bxd5 Nxd5 17. Qxd5 Qxe2 $11) 15... Rad8 {[%emt 0:00:11]} 16. a3 {[%emt 0:01:18]} d4 {[%emt 0:00:41]} 17. Bxf6 {[%emt 0:00:28]} Qxf6 {[%emt 0:00:15]} 18. Ne4 {[%emt 0:00:20]} Bxe4 {[%emt 0:00:06]} 19. Bxe4 {[%emt 0:00:04]} ({But not} 19. Qxe4 d3 20. exd3 Qxb2 $17) 19... g6 {[%emt 0:00:03] Black is weak on the light squares} 20. b4 {[%emt 0:00:04]} Bd6 {[%emt 0:00:04]} 21. Rc6 {[%emt 0:00:04]} Rc8 {[%emt 0:00:41]} 22. Rfc1 {[%emt 0:00:12]} Rxc6 {[%emt 0:00:04]} 23. Rxc6 {[%emt 0:00:03]} Rd8 {[%emt 0:00:04]} 24. Qc4 {[%emt 0:00:29]} Qe7 {[%emt 0:00:31]} 25. Bd3 {[%emt 0:00:04]} ({Don't play} 25. Qxd4 Bxg3 26. Qf6 Rd1+ 27. Kg2 Qxe4+ $17) 25... Be5 {[%emt 0:00:08]} 26. a4 {[%emt 0:00:09]} Rd6 {[%emt 0:00:12]} 27. b5 {[%emt 0:00:18]} Rxc6 {[%emt 0:00:09]} 28. bxc6 $11 {[%emt 0:00:04][%mdl 4096] Endgame KQB-KQB} Qc5 {[%emt 0:00:10]} 29. Qa6 {[%emt 0:00:42]} (29. Qb5 $142) 29... Qc1+ {[%emt 0:00:05]} 30. Kg2 {[%emt 0:00:09] [#] Bc4 would be deadly.} Qxc6+ {[%emt 0:00:03]} 31. f3 {[%emt 0:00:03]} h5 {[%emt 0:00:14][%cal Bh7h5,Bh5h4][%mdl 32]} 32. Qxa7 {[%emt 0:00:06]} h4 {[%emt 0:00:08]} 33. Bb5 {[%emt 0:00:41]} Qc7 {[%emt 0:00:10]} 34. Qa8+ {[%emt 0:00:11]} Qb8 {[%emt 0:00:11]} 35. Qd5 {[%emt 0:00:22]} hxg3 {[%emt 0:00:07]} 36. Bc4 {[%emt 0:00:12]} Qc7 {[%emt 0:00:09]} 37. hxg3 {[%emt 0:00:12]} Kg7 {[%emt 0:00:28]} 38. f4 {[%emt 0:00:19]} Bf6 {[%emt 0:00:05]} 39. Kf1 {[%emt 0:00:32]} Qd8 $2 {[%emt 0:00:35][%mdl 8192] [#]} (39... Qe7 $11) 40. Qxf7+ {[%emt 0:00:06] Weighted Error Value: White=0.07 (flawless) /Black=0.27 (precise)} 1-0

[Event "ChessKid Cup Div-II 2023"]
[Site "Online"]
[Date "2023.05.22"]
[Round "1.5"]
[White "Nguyen, Ngoc Truong Son"]
[Black "Andreikin, Dmitry"]
[Result "1-0"]
[ECO "D27"]
[WhiteElo "2645"]
[BlackElo "2729"]
[Annotator "TA"]
[PlyCount "83"]
[EventDate "2023.05.21"]
[EventType "k.o."]
[EventCountry "NET"]
[SourceTitle "playchess.com"]
[Source "ChessBase"]
[SourceQuality "1"]
[TimeControl "900+3"]

{[%evp 15,83,21,23,0,19,24,43,35,47,37,54,34,73,72,107,87,105,105,106,102,105,102,120,116,109,112,115,97,122,87,112,110,127,134,138,144,145,138,140,144,147,137,141,130,202,191,231,217,281,293,298,237,401,392,380,326,372,287,473,473,473,467,467,467,29972,29973,29983,29984,29985,29986]} 1. d4 {[%emt 0:00:08]} d5 {[%emt 0:03:33]} 2. c4 {[%emt 0:00:08]} dxc4 {[%emt 0:00:04]} 3. e3 {[%emt 0:00:23]} Nf6 {[%emt 0:00:06]} 4. Bxc4 {[%emt 0:00:07]} e6 {[%emt 0:00:03]} 5. Nf3 {[%emt 0:00:33][%cal Bg1f3,Bf3d2,Bd2b3][%mdl 32]} c5 {[%emt 0:00:04]} 6. O-O {[%emt 0:00:06]} a6 {[%emt 0:00:04]} 7. dxc5 {[%emt 0:00:24]} Qxd1 {[%emt 0:00:08]} 8. Rxd1 {[%emt 0:00:03]} Bxc5 {[%emt 0:00:03]} 9. Nfd2 {[%emt 0:00:07] 9.b3 is a critical line. D27: Queen's Gambit Accepted: Classical main line: 7 e4!? and 7 a4.} Nbd7 {[%emt 0:00:38]} 10. Be2 {[%emt 0:00:09] [#]} b5 $146 {[%emt 0:00:27]} ({Predecessor:} 10... b6 11. Nb3 Be7 12. f3 Nc5 13. Nd4 Bb7 14. e4 O-O 15. Be3 b5 16. Nc3 g6 17. Rac1 {½-½ Grischuk,A (2783)-Navara,D (2737) FIDE World Cup 2017 (3.1)}) 11. Nb3 {[%emt 0:00:08] White is slightly better.} Bb6 {[%emt 0:00:14]} 12. Bd2 {[%emt 0:00:32][%cal Bc1d2,Bd2a5,Ba5b4][%mdl 32]} Bb7 {[%emt 0:00:48]} 13. Ba5 {[%emt 0:00:34]} Rc8 {[%emt 0:00:22]} 14. Nc3 {[%emt 0:00:17]} Nd5 {[%emt 0:00:27]} 15. Bf3 {[%emt 0:00:52][%cal Rc3d5]} O-O {[%emt 0:01:45]} 16. Bxd5 {[%emt 0:01:40]} Bxd5 {[%emt 0:00:07]} 17. Nxd5 {[%emt 0:01:15]} exd5 {[%emt 0:00:04]} 18. Bb4 {[%emt 0:00:09]} Rfe8 {[%emt 0:00:20]} 19. Rxd5 {[%emt 0:00:05]} Ne5 {[%emt 0:00:03]} 20. Bc3 {[%emt 0:00:15]} Nc4 {[%emt 0:00:12]} 21. h4 {[%emt 0:00:47]} h6 {[%emt 0:00:22]} 22. a4 {[%emt 0:00:06]} Red8 {[%emt 0:01:15]} 23. Rxd8+ {[%emt 0:00:28]} Rxd8 {[%emt 0:00:03]} 24. Kf1 {[%emt 0:00:25]} Rb8 {[%emt 0:00:17][%cal Ob5b4]} 25. axb5 {[%emt 0:00:17]} axb5 {[%emt 0:00:03][%cal Ob5b4]} 26. Nd2 {[%emt 0:00:08]} Nxd2+ {[%emt 0:00:21]} 27. Bxd2 $16 {[%emt 0:00:03][%mdl 4096] Endgame KRB-KRB} Bd8 {[%emt 0:00:03]} 28. h5 {[%emt 0:00:16]} Bf6 {[%emt 0:00:04]} 29. Ra2 {[%emt 0:00:09]} Rd8 {[%emt 0:01:10]} (29... b4 $16 {was called for.}) 30. Ke2 $18 {[%emt 0:00:06]} Rd5 {[%emt 0:00:08] [#]} 31. g4 $1 {[%emt 0:00:05]} Bh4 {[%emt 0:00:11]} 32. e4 {[%emt 0:00:21]} Rc5 {[%emt 0:00:14]} 33. f3 {[%emt 0:00:18][%cal Bf2f3,Bf3f4][%mdl 32]} Bg5 $2 {[%emt 0:00:14]} (33... Rc2 {might work better.}) 34. f4 {[%emt 0:00:17]} Bh4 {[%emt 0:00:09]} 35. b4 {[%emt 0:00:30]} Rc4 {[%emt 0:00:05]} 36. Kd3 {[%emt 0:00:05]} Be7 $2 {[%emt 0:00:05] [#]} (36... Rc8 {keeps fighting.} 37. e5 Rd8+ 38. Ke3 Kf8) 37. Ra8+ {[%emt 0:00:13]} Kh7 {[%emt 0:00:13]} 38. Rb8 {[%emt 0:00:12]} Bxb4 {[%emt 0:00:07]} 39. Rxb5 {[%emt 0:00:05]} Bxd2 {[%emt 0:00:07]} (39... Rxe4 $18 40. Rxb4 Re7) 40. Kxc4 {[%emt 0:00:03] White mates.} Bxf4 {[%emt 0:00:03]} 41. Rf5 {[%emt 0:00:04][%csl LRf4,LRf7]} Bg3 {[%emt 0:00:13]} 42. Rxf7 {[%emt 0:00:05] Black got outplayed after the opening.   Weighted Error Value: White=0.08 (flawless) /Black=0.40} 1-0

[Event "ChessKid Cup Div-II 2023"]
[Site "Online"]
[Date "2023.05.23"]
[Round "2.1"]
[White "Anton Guijarro, David"]
[Black "Fedoseev, Vladimir"]
[Result "1-0"]
[ECO "C42"]
[WhiteElo "2690"]
[BlackElo "2680"]
[Annotator "TA"]
[PlyCount "91"]
[EventDate "2023.05.21"]
[EventType "k.o."]
[EventCountry "NET"]
[SourceTitle "playchess.com"]
[Source "ChessBase"]
[SourceQuality "1"]
[TimeControl "900+3"]

{[%evp 19,91,17,67,62,66,21,31,27,37,29,57,54,52,29,20,0,0,0,4,0,49,10,59,62,75,2,35,0,0,0,0,0,0,0,27,19,71,87,82,33,23,7,0,0,0,0,0,0,368,281,379,0,0,0,534,516,974,913,1276,1134,1079,1065,1525,1462,1347,1316,3427,2292,12843,12843,12845,12845,29991,29992]} 1. e4 {[%emt 0:00:04]} e5 {[%emt 0:00:09]} 2. Nf3 {[%emt 0:00:03]} Nf6 {[%emt 0:00:01]} 3. Nxe5 {[%emt 0:00:03]} d6 {[%emt 0:00:02]} 4. Nf3 {[%emt 0:00:02]} Nxe4 {[%emt 0:00:01]} 5. d4 {[%emt 0:00:02]} d5 {[%emt 0:00:02]} 6. Bd3 {[%emt 0:00:02]} Bd6 {[%emt 0:00:01]} 7. O-O {[%emt 0:00:03]} O-O {[%emt 0:00:01]} 8. c4 {[%emt 0:00:02]} c6 {[%emt 0:00:01]} 9. Nc3 {[%emt 0:00:10]} Nxc3 {[%emt 0:00:13]} 10. bxc3 {[%emt 0:00:00]} h6 {[%emt 0:01:07]} ({Black should play} 10... dxc4 $11 11. Bxc4 Bf5) 11. c5 $5 {[%emt 0:01:53][%mdl 4] A promising side line. C42: Petroff Defence: 3 Nxe5 and unusual White 3rd moves.} Bc7 {[%emt 0:00:03]} 12. Re1 {[%emt 0:00:16] [#] White is more active.} Re8 $146 {[%emt 0:00:16]} ({Predecessor:} 12... Nd7 13. Rb1 Re8 14. Bd2 Rxe1+ 15. Qxe1 Nf6 16. Ne5 Rb8 17. Bf4 Be6 18. h3 Qe8 {½-½ Navara,D (2697)-Jobava,B (2603) MrDodgy Online Inv 2nd blitz 2021 (2.1)}) 13. Rxe8+ {[%emt 0:01:03] White is slightly better.} Qxe8 {[%emt 0:00:03]} 14. Be3 {[%emt 0:00:38]} Bg4 {[%emt 0:03:19]} 15. h3 {[%emt 0:02:50]} Bh5 {[%emt 0:00:05]} 16. g4 {[%emt 0:01:50]} (16. Qb3 $5 {[%cal Rb3b7]} b6 17. g4 $14) 16... Bg6 {[%emt 0:00:04]} 17. Nh4 {[%emt 0:00:01][%cal Bf3h4,Bh4f5,Bf5h6][%mdl 32] Nxg6 would be deadly.} Bxd3 {[%emt 0:01:25]} 18. Qxd3 {[%emt 0:00:00]} Nd7 {[%emt 0:00:01]} 19. Nf5 {[%emt 0:01:29]} Nf6 {[%emt 0:00:29]} (19... Nf8 $11) 20. f3 {[%emt 0:00:02] Threatening Qd2.} (20. Rb1 $5 {[%cal Rb1b7]}) 20... g6 {[%emt 0:02:33]} (20... Nh7 $11 {might be stronger.}) 21. Nxh6+ {[%emt 0:00:19]} Kg7 {[%emt 0:00:01]} 22. Re1 {[%emt 0:00:40]} ({White should try} 22. Qd2 $16) 22... Qd7 {[%emt 0:00:44]} (22... Bg3 $5 {[%cal Rg3e1]} 23. Re2 Qd7 $11) 23. Bg5 {[%emt 0:00:36]} (23. Qd2 $5 {[%cal Re3g5]}) 23... Re8 {[%emt 0:00:16]} 24. Rxe8 {[%emt 0:00:03]} Qxe8 {[%emt 0:00:22]} 25. Qd2 {[%emt 0:00:10] Prevents Qe1+.} Nh7 {[%emt 0:00:19][%cal Bf6h7,Bh7f8,Bf8e6][%mdl 32] [#] aiming for ...Nxg5.} 26. Be3 {[%emt 0:00:02]} Qe7 {[%emt 0:00:07] And now ...Qh4 would win.} (26... Bd8 $5 {[%cal Re8e7]}) 27. g5 $1 {[%emt 0:00:17]} Qe6 {[%emt 0:01:16]} (27... f6 $11) 28. Kg2 $16 {[%emt 0:00:28]} Nf8 {[%emt 0:00:28]} 29. Qd3 {[%emt 0:00:30]} (29. h4 $16) 29... Qe7 $14 {[%emt 0:00:33]} 30. h4 {[%emt 0:00:11]} Ne6 {[%emt 0:00:05] Wards off f4} 31. Qd2 {[%emt 0:00:03][%cal Oh4h5]} f5 {[%emt 0:00:18]} 32. f4 {[%emt 0:00:44]} Nf8 {[%emt 0:00:20]} 33. Qd3 {[%emt 0:00:04][%cal Od3f5] Qxf5! is the strong threat.} b5 $2 {[%emt 0:00:48][%mdl 8192]} (33... Qe6 $11) 34. cxb6 {[%emt 0:00:26]} axb6 {[%emt 0:00:04]} 35. a4 $2 {[%emt 0:00:11]} (35. Qxf5 $1 $18 {Black must now prevent Qd3.} gxf5 36. Nxf5+ Kf7 37. Nxe7 Kxe7 38. f5) 35... Ne6 $11 {[%emt 0:00:42]} 36. Kf3 {[%emt 0:00:15][%cal Od3f5] Threatens to win with Qxf5!} Qd6 $2 {[%emt 0:00:07][%mdl 8192] [#]} (36... Kh7 $11 {and Black has nothing to worry.}) 37. Qxf5 $1 $18 {[%emt 0:00:32] Threatening mate with Qf7+.} ({Not} 37. Nxf5+ gxf5 38. Qxf5 Qe7 $16) 37... gxf5 {[%emt 0:00:15]} (37... Qe7 $142 38. Qb1 Qd6) 38. Nxf5+ {[%emt 0:00:00]} Kf7 {[%emt 0:00:02]} 39. Nxd6+ {[%emt 0:00:02]} Bxd6 {[%emt 0:00:00]} 40. f5 {[%emt 0:00:06]} Nc7 {[%emt 0:00:02]} 41. Bf4 {[%emt 0:00:09]} Ne8 {[%emt 0:00:07]} 42. h5 {[%emt 0:00:06][%cal Bh4h5,Bh5h6][%mdl 32]} c5 {[%emt 0:00:04]} 43. h6 {[%emt 0:00:06]} Bxf4 {[%emt 0:00:09]} 44. Kxf4 {[%emt 0:00:01]} Nd6 {[%emt 0:00:01]} 45. g6+ {[%emt 0:00:16]} Kg8 {[%emt 0:00:05]} 46. f6 {[%emt 0:00:05] Weighted Error Value: White=0.30/Black=0.68} 1-0